fUST/lending_fUST_20250222
["ID","MTS","AMOUNT","RATE_DAILY","PERIOD"]
[354058684,1740215445845,-577.24423,0.000149,2]
[354058686,1740215445854,-522.990991,0.000149,2]
[354058688,1740215445863,-522.990991,0.000149,2]
[354058690,1740215445873,-151.0,0.000149,2]
[354058692,1740215445882,-151.0,0.000149,2]
[354058694,1740215445892,-151.0,0.000149,2]
[354058696,1740215445901,-356.941771,0.000149,2]
[354058698,1740215445910,-356.941771,0.000149,2]
[354058700,1740215445919,-749.50867,0.000149,2]
[354058702,1740215445928,-749.50867,0.000149,2]
[354058704,1740215445938,-1625.411995,0.000149,2]
[354058706,1740215445947,-1625.411995,0.000149,2]
[354058708,1740215445957,-1625.411995,0.000149,2]
[354058710,1740215445966,-1625.411995,0.000149,2]
[354058712,1740215445976,-151.0,0.000149,2]
[354058714,1740215445985,-151.230935,0.000149,2]
[354058716,1740215445994,-442.581863,0.000149,2]
[354058718,1740215446003,-442.581863,0.000149,2]
[354058720,1740215446012,-151.0,0.000149,2]
[354058722,1740215446022,-2396.891565,0.000149,2]
[354058724,1740215446031,-2396.891565,0.000149,2]
[354058726,1740215446040,-2396.891565,0.000149,2]
[354058728,1740215446049,-2396.891565,0.000149,2]
[354058730,1740215446059,-151.0,0.000149,2]
[354058732,1740215446069,-161.636728,0.000149,2]
[354058734,1740215446078,-151.0,0.000149,2]
[354058736,1740215446087,-151.0,0.000149,2]
[354058738,1740215446099,-261.231956,0.000149,2]
[354058740,1740215446108,-261.231956,0.000149,2]
[354058742,1740215446117,-292.822863,0.000149,2]
[354058744,1740215446126,-343.130162,0.000149,2]
[354058746,1740215446135,-343.130162,0.000149,2]
[354058748,1740215446144,-251.16502,0.000149,2]
[354058750,1740215446155,-251.16502,0.000149,2]
[354058752,1740215446164,-1896.083334,0.000149,2]
[354058754,1740215446173,-251.16502,0.000149,2]
[354058756,1740215446183,-251.16502,0.000149,2]
[354058764,1740215446253,-1896.083334,0.000149,2]
[354058766,1740215446262,-540013.334042,0.000149,2]
[354058768,1740215446272,-151.0,0.000149,2]
[354058770,1740215446283,-151.0,0.000149,2]
[354058772,1740215446292,-151.0,0.000149,2]
[354058774,1740215446301,-154.037813,0.000149,2]
[354058776,1740215446312,-151.0,0.000149,2]
[354058778,1740215446321,-151.0,0.000149,2]
[354058780,1740215446331,-300.0,0.00014902,2]
[354058782,1740215446340,-279.64873978,0.00014905,2]
[354058784,1740215446350,-1311.97,0.00014931,2]
[354058786,1740215446360,-500.0,0.00014931,2]
[354058788,1740215446369,-4208.98,0.00014931,2]
[354058790,1740215446378,-2396.27,0.00014931,2]
[354058792,1740215446388,-567.11,0.00014931,2]
[354058794,1740215446398,-762.65,0.00014931,2]
[354058796,1740215446408,-309.220242,0.00014979,2]
[354058798,1740215446417,-154.796407,0.00014979,2]
[354058800,1740215446427,-154.796407,0.00014979,2]
[354058802,1740215446436,-153.0,0.00014979,2]
[354058804,1740215446445,-154.7234452,0.00015,2]
[354058806,1740215446455,-563.0622318,0.00015,2]
[354058808,1740215446467,-1000.0,0.00015,2]
[354058810,1740215446476,-1311.97,0.00015013,2]
[354058812,1740215446485,-500.0,0.00015013,2]
[354058814,1740215446494,-4208.98,0.00015013,2]
[354058816,1740215446504,-2396.27,0.00015013,2]
[354058818,1740215446514,-567.11,0.00015013,2]
[354058820,1740215446524,-762.65,0.00015013,2]
[354058822,1740215446533,-500.0,0.00015068,2]
[354058824,1740215446543,-1311.97,0.00015095,2]
[354058826,1740215446552,-500.0,0.00015095,2]
[354058828,1740215446561,-4208.98,0.00015095,2]
[354058830,1740215446571,-2396.27,0.00015095,2]
[354058832,1740215446580,-567.11,0.00015095,2]
[354058834,1740215446590,-762.65,0.00015095,2]
[354058836,1740215446600,-250.0,0.00015109,2]
[354058838,1740215446610,-355.293833,0.00015123,2]
[354058840,1740215446619,-355.293833,0.00015123,2]
[354058842,1740215446629,-355.293833,0.00015123,2]
[354058845,1740215446639,-355.293833,0.00015123,2]
[354058847,1740215446648,-355.293833,0.00015123,2]
[354058849,1740215446657,-352.6720964,0.00015123,2]
[354058851,1740215446667,-265.796,0.00015128,2]
[354058852,1740215446676,-538.0,0.00015128,2]
[354058854,1740215446685,-1970.0,0.00015128,2]
[354058856,1740215446695,-2287.0,0.00015128,2]
[354058859,1740215446705,-396.0,0.00015128,2]
[354058861,1740215446715,-465.00252471,0.0001515,2]
[354058863,1740215446724,-1311.97,0.00015178,2]
[354058865,1740215446734,-500.0,0.00015178,2]
[354058867,1740215446743,-4208.98,0.00015178,2]
[354058869,1740215446752,-2396.27,0.00015178,2]
[354058871,1740215446762,-567.11,0.00015178,2]
[354058873,1740215446771,-762.65,0.00015178,2]
[354058875,1740215446780,-710.43500729,0.00015243,2]
[354058877,1740215446790,-1311.97,0.0001526,2]
[354058879,1740215446799,-637.36,0.0001526,2]
[354058881,1740215446808,-4208.98,0.0001526,2]
[354058883,1740215446818,-2396.27,0.0001526,2]
[354058885,1740215446827,-567.11,0.0001526,2]
[354058887,1740215446840,-762.65,0.0001526,2]
[354058889,1740215446850,-179.71246006,0.0001529,2]
[354058891,1740215446859,-500.0,0.00015342,2]
[354058893,1740215446869,-1311.97,0.00015342,2]
[354058895,1740215446877,-4208.98,0.00015342,2]
[354058897,1740215446888,-2396.27,0.00015342,2]
[354058899,1740215446899,-567.11,0.00015342,2]
[354058901,1740215446909,-762.65,0.00015342,2]
[354058903,1740215446921,-500.0,0.00015342,2]
[354058905,1740215446930,-710.43500729,0.00015343,2]
[354058907,1740215446939,-1311.97,0.00015424,2]
[354058909,1740215446948,-4208.98,0.00015424,2]
[354058910,1740215446957,-2396.27,0.00015424,2]
[354058912,1740215446967,-567.11,0.00015424,2]
[354058915,1740215446976,-762.65,0.00015424,2]
[354058917,1740215446986,-710.43500729,0.00015443,2]
[354058919,1740215446995,-2200.0,0.00015464,2]
[354058921,1740215447004,-1311.97,0.00015506,2]
[354058923,1740215447013,-4208.98,0.00015506,2]
[354058925,1740215447022,-2396.27,0.00015506,2]
[354058927,1740215447030,-567.11,0.00015506,2]
[354058929,1740215447040,-762.65,0.00015506,2]
[354058931,1740215447050,-343.130162,0.00015534,2]
[354058933,1740215447060,-343.130162,0.00015534,2]
[354058935,1740215447069,-151.0,0.00015534,2]
[354058937,1740215447078,-151.0,0.00015534,2]
[354058939,1740215447087,-151.0,0.00015534,2]
[354058941,1740215447097,-219.589172,0.00015534,2]
[354058943,1740215447106,-775.0743323,0.00015534,2]
[354058945,1740215447115,-557.2941539,0.00015534,2]
[354058947,1740215447124,-557.2941539,0.00015534,2]
[354058949,1740215447133,-557.2941539,0.00015534,2]
[354058950,1740215447142,-557.2941539,0.00015534,2]
[354058953,1740215447151,-557.2941539,0.00015534,2]
[354058955,1740215447161,-1114.5883078,0.00015534,2]
[354058957,1740215447171,-557.2941539,0.00015534,2]
[354058959,1740215447180,-306.0,0.00015534,2]
[354058961,1740215447190,-557.2941539,0.00015534,2]
[354058963,1740215447199,-306.0,0.00015534,2]
[354058965,1740215447208,-264.3051201,0.00015534,2]
[354058967,1740215447217,-738.8294956,0.00015534,2]
[354058969,1740215447227,-153.0,0.00015534,2]
[354058971,1740215447241,-309.5154936,0.00015534,2]
[354058973,1740215447252,-153.0,0.00015534,2]
[354058974,1740215447261,-306.0,0.00015534,2]
[354058976,1740215447271,-153.0,0.00015534,2]
[354058978,1740215447282,-153.0,0.00015534,2]
[354058980,1740215447291,-557.2941539,0.00015534,2]
[354058983,1740215447301,-557.2941539,0.00015534,2]
[354058985,1740215447312,-557.2941539,0.00015534,2]
[354058986,1740215447321,-557.2941539,0.00015534,2]
[354058988,1740215447331,-557.2941539,0.00015534,2]
[354058997,1740215447400,-1146.515884,0.00015534,2]
[354058999,1740215447410,-710.43500729,0.00015543,2]
[354059001,1740215447422,-151.0,0.00015589,2]
[354059003,1740215447432,-151.0,0.00015589,2]
[354059005,1740215447442,-261.231956,0.00015589,2]
[354059007,1740215447451,-261.231956,0.00015589,2]
[354059009,1740215447460,-1312.03,0.00015589,2]
[354059011,1740215447470,-1896.083334,0.00015589,2]
[354059013,1740215447480,-1896.083334,0.00015589,2]
[354059015,1740215447489,-4209.12445307,0.00015589,2]
[354059017,1740215447499,-2396.46653839,0.00015589,2]
[354059019,1740215447509,-567.13,0.00015589,2]
[354059021,1740215447520,-762.78,0.00015589,2]
[354059023,1740215447529,-500.0,0.00015616,2]
[354059025,1740215447538,-2396.891565,0.00015616,2]
[354059027,1740215447548,-2396.891565,0.00015616,2]
[354059029,1740215447558,-251.16502,0.00015616,2]
[354059031,1740215447568,-251.16502,0.00015616,2]
[354059033,1740215447577,-710.43500729,0.00015643,2]
[354059035,1740215447587,-168.58404879,0.00015671,2]
[354059037,1740215447596,-710.43500729,0.00015743,2]
[354059039,1740215447606,-230.815179,0.00015775,2]
[354059041,1740215447616,-710.43500729,0.00015843,2]
[354059042,1740215447625,-151.0,0.00015845,2]
[354059044,1740215447634,-168.58404879,0.00015863,2]
[354059046,1740215447643,-500.0,0.0001589,2]
[354059048,1740215447653,-449.064463,0.0001593,2]
[354059050,1740215447662,-449.064463,0.0001593,2]
[354059052,1740215447671,-201.69667616,0.0001593,2]
[354059054,1740215447680,-349.0,0.0001593,2]
[354059056,1740215447690,-349.0,0.0001593,2]
[354059058,1740215447699,-349.0,0.0001593,2]
[354059060,1740215447708,-349.0,0.0001593,2]
[354059062,1740215447718,-349.0,0.0001593,2]
[354059064,1740215447727,-349.0,0.0001593,2]
[354059067,1740215447736,-349.0,0.0001593,2]
[354059069,1740215447746,-349.0,0.0001593,2]
[354059071,1740215447755,-349.0,0.0001593,2]
[354059073,1740215447765,-349.0,0.0001593,2]
[354059075,1740215447774,-349.0,0.0001593,2]
[354059077,1740215447783,-349.0,0.0001593,2]
[354059079,1740215447792,-349.0,0.0001593,2]
[354059081,1740215447801,-349.0,0.0001593,2]
[354059083,1740215447810,-349.0,0.0001593,2]
[354059085,1740215447820,-349.0,0.0001593,2]
[354059086,1740215447829,-349.0,0.0001593,2]
[354059088,1740215447839,-204.88884452,0.0001593,2]
[354059090,1740215447849,-349.0,0.0001593,2]
[354059092,1740215447858,-349.0,0.0001593,2]
[354059095,1740215447868,-349.0,0.0001593,2]
[354059097,1740215447877,-349.0,0.0001593,2]
[354059099,1740215447887,-349.0,0.0001593,2]
[354059101,1740215447899,-349.0,0.0001593,2]
[354059104,1740215447920,-315.0,0.0001593,2]
[354059107,1740215447934,-349.0,0.0001593,2]
[354059110,1740215447952,-315.0,0.0001593,2]
[354059113,1740215447969,-349.0,0.0001593,2]
[354059115,1740215447988,-315.0,0.0001593,2]
[354059118,1740215448003,-349.0,0.0001593,2]
[354059121,1740215448019,-315.0,0.0001593,2]
[354059124,1740215448036,-349.0,0.0001593,2]
[354059126,1740215448049,-315.0,0.0001593,2]
[354059129,1740215448065,-315.0,0.0001593,2]
[354059132,1740215448081,-349.0,0.0001593,2]
[354059135,1740215448100,-315.0,0.0001593,2]
[354059137,1740215448116,-315.0,0.0001593,2]
[354059140,1740215448128,-349.0,0.0001593,2]
[354059143,1740215448146,-315.0,0.0001593,2]
[354059145,1740215448160,-315.0,0.0001593,2]
[354059147,1740215448174,-349.0,0.0001593,2]
[354059149,1740215448188,-315.0,0.0001593,2]
[354059150,1740215448201,-315.0,0.0001593,2]
[354059151,1740215448214,-349.0,0.0001593,2]
[354059152,1740215448227,-315.0,0.0001593,2]
[354059153,1740215448245,-315.0,0.0001593,2]
[354059154,1740215448259,-315.0,0.0001593,2]
[354059155,1740215448273,-349.0,0.0001593,2]
[354059156,1740215448286,-315.0,0.0001593,2]
[354059157,1740215448299,-349.0,0.0001593,2]
[354059158,1740215448316,-273.19398079,0.0001593,2]
[354059159,1740215448334,-315.0,0.0001593,2]
[354059161,1740215448347,-315.0,0.0001593,2]
[354059163,1740215448362,-315.0,0.0001593,2]
[354059165,1740215448376,-315.0,0.0001593,2]
[354059168,1740215448390,-315.0,0.0001593,2]
[354059170,1740215448403,-315.0,0.0001593,2]
[354059173,1740215448416,-315.0,0.0001593,2]
[354059175,1740215448430,-315.0,0.0001593,2]
[354059177,1740215448444,-315.0,0.0001593,2]
[354059180,1740215448458,-315.0,0.0001593,2]
[354059182,1740215448472,-315.0,0.0001593,2]
[354059184,1740215448488,-315.0,0.0001593,2]
[354059186,1740215448503,-315.0,0.0001593,2]
[354059188,1740215448514,-315.0,0.0001593,2]
[354059190,1740215448523,-315.0,0.0001593,2]
[354059192,1740215448532,-315.0,0.0001593,2]
[354059194,1740215448541,-315.0,0.0001593,2]
[354059196,1740215448551,-315.0,0.0001593,2]
[354059198,1740215448560,-315.0,0.0001593,2]
[354059200,1740215448569,-411.09860035,0.0001593,2]
[354059202,1740215448578,-151.0,0.0001593,2]
[354059204,1740215448588,-151.0,0.0001593,2]
[354059206,1740215448598,-361.965309,0.0001593,2]
[354059208,1740215448608,-361.965309,0.0001593,2]
[354059224,1740215448748,-151.0,0.0001593,2]
[354059227,1740215448762,-577.24423,0.0001593,2]
[354059229,1740215448771,-577.24423,0.0001593,2]
[354059231,1740215448781,-522.990991,0.0001593,2]
[354059233,1740215448790,-522.990991,0.0001593,2]
[354059235,1740215448799,-151.0,0.0001593,2]
[354059237,1740215448809,-151.0,0.0001593,2]
[354059239,1740215448818,-356.941771,0.0001593,2]
[354059241,1740215448827,-356.941771,0.0001593,2]
[354059243,1740215448837,-749.50867,0.0001593,2]
[354059245,1740215448846,-749.50867,0.0001593,2]
[354059247,1740215448855,-1625.411995,0.0001593,2]
[354059249,1740215448865,-1625.411995,0.0001593,2]
[354059251,1740215448874,-442.581863,0.0001593,2]
[354059253,1740215448883,-442.581863,0.0001593,2]
[354059255,1740215448893,-710.43500729,0.00015943,2]
[354059257,1740215448903,-500.0,0.00015973,2]
[354059259,1740215448912,-500.0,0.00015973,2]
[354059261,1740215448921,-500.0,0.00015973,2]
[354059262,1740215448931,-14790.75761201,0.0001599,2]
[354059264,1740215448939,-151.0,0.0001599,2]
[354059266,1740215448949,-151.0,0.0001599,2]
[354059268,1740215448958,-333.642135,0.0001599,2]
[354059270,1740215448967,-333.642135,0.0001599,2]
[354059272,1740215448976,-355.032491,0.0001599,2]
[354059274,1740215448985,-355.032491,0.0001599,2]
[354059276,1740215448994,-597.823727,0.0001599,2]
[354059278,1740215449003,-597.823727,0.0001599,2]
[354059280,1740215449013,-1101.75304,0.0001599,2]
[354059282,1740215449022,-1101.75304,0.0001599,2]
[354059283,1740215449032,-151.0,0.0001599,2]
[354059285,1740215449042,-270.0,0.0001599,2]
[354059287,1740215449051,-270.0,0.0001599,2]
[354059289,1740215449060,-151.0,0.0001599,2]
[354059291,1740215449070,-517.928836,0.0001599,2]
[354059293,1740215449079,-517.928836,0.0001599,2]
[354059295,1740215449088,-9341.5961573,0.00016,2]
[354059297,1740215449097,-60000.0,0.00016,2]
[354059299,1740215449108,-199.0,0.00016,5]
[354059301,1740215449117,-151.0,0.00016,2]
[354059303,1740215449126,-151.0,0.00016,2]
[354059305,1740215449136,-3000.0,0.00016,2]
[354059307,1740215449146,-151.0,0.00016,2]
[354059309,1740215449156,-356.941771,0.00016,2]
[354059311,1740215449165,-356.941771,0.00016,2]
[354059313,1740215449174,-749.50867,0.00016,2]
[354059315,1740215449184,-749.50867,0.00016,2]
[354059317,1740215449193,-442.581863,0.00016,2]
[354059319,1740215449203,-442.581863,0.00016,2]
[354059321,1740215449212,-151.0,0.00016,2]
[354059323,1740215449221,-2396.891565,0.00016,2]
[354059325,1740215449235,-2396.891565,0.00016,2]
[354059327,1740215449245,-151.0,0.00016,2]
[354059329,1740215449256,-151.0,0.00016,2]
[354059331,1740215449265,-261.231956,0.00016,2]
[354059333,1740215449277,-261.231956,0.00016,2]
[354059335,1740215449286,-343.130162,0.00016,2]
[354059336,1740215449295,-343.130162,0.00016,2]
[354059338,1740215449306,-251.16502,0.00016,2]
[354059340,1740215449315,-1896.083334,0.00016,2]
[354059342,1740215449326,-251.16502,0.00016,2]
[354059344,1740215449336,-1896.083334,0.00016,2]
[354059346,1740215449346,-151.0,0.00016,2]
[354059348,1740215449356,-151.0,0.00016,2]
[354059350,1740215449366,-3000.0,0.0001601,2]
[354059352,1740215449377,-151.0,0.0001601,2]
[354059354,1740215449386,-151.0,0.0001601,2]
[354059356,1740215449396,-361.965309,0.0001601,2]
[354059358,1740215449405,-361.965309,0.0001601,2]
[354059360,1740215449414,-522.990991,0.0001601,2]
[354059362,1740215449424,-522.990991,0.0001601,2]
[354059364,1740215449433,-151.0,0.0001601,2]
[354059366,1740215449442,-1625.411995,0.0001601,2]
[354059367,1740215449451,-1625.411995,0.0001601,2]
[354059369,1740215449460,-449.064463,0.0001602,2]
[354059371,1740215449469,-449.064463,0.0001602,2]
[354059373,1740215449478,-3000.0,0.0001602,2]
[354059375,1740215449487,-3000.0,0.0001603,2]
[354059377,1740215449496,-151.0,0.0001603,2]
[354059379,1740215449506,-577.24423,0.0001603,2]
[354059381,1740215449515,-577.24423,0.0001603,2]
[354059383,1740215449524,-3000.0,0.0001604,2]
[354059385,1740215449533,-710.43500729,0.00016043,2]
[354059387,1740215449543,-3000.0,0.0001605,2]
[354059389,1740215449552,-557.2941539,0.00016055,2]
[354059391,1740215449561,-501.322563,0.0001606,2]
[354059393,1740215449570,-333.642135,0.0001606,2]
[354059395,1740215449579,-333.642135,0.0001606,2]
[354059397,1740215449588,-355.032491,0.0001606,2]
[354059399,1740215449598,-355.032491,0.0001606,2]
[354059401,1740215449608,-597.823727,0.0001606,2]
[354059404,1740215449617,-597.823727,0.0001606,2]
[354059406,1740215449626,-1101.75304,0.0001606,2]
[354059407,1740215449636,-1101.75304,0.0001606,2]
[354059410,1740215449645,-157.899175,0.0001606,2]
[354059411,1740215449655,-270.0,0.0001606,2]
[354059413,1740215449664,-270.0,0.0001606,2]
[354059415,1740215449673,-3000.0,0.0001606,2]
[354059417,1740215449682,-151.0,0.0001606,2]
[354059419,1740215449692,-517.928836,0.0001606,2]
[354059421,1740215449701,-517.928836,0.0001606,2]
[354059423,1740215449711,-151.0,0.0001607,2]
[354059425,1740215449720,-3000.0,0.0001607,2]
[354059427,1740215449729,-3000.0,0.0001608,2]
[354059429,1740215449738,-3000.0,0.0001609,2]
[354059431,1740215449748,-3000.0,0.000161,2]
[354059433,1740215449757,-151.0,0.0001611,2]
[354059435,1740215449766,-3000.0,0.0001611,2]
[354059437,1740215449775,-3000.0,0.0001612,2]
[354059439,1740215449783,-151.0,0.0001613,2]
[354059441,1740215449793,-3000.0,0.0001613,2]
[354059443,1740215449802,-3000.0,0.0001614,2]
[354059445,1740215449810,-710.43500729,0.00016143,2]
[354059447,1740215449819,-3000.0,0.0001615,2]
[354059449,1740215449828,-3000.0,0.0001616,2]
[354059451,1740215449837,-500.0,0.00016164,2]
[354059453,1740215449846,-3000.0,0.0001617,2]
[354059455,1740215449856,-3000.0,0.0001618,2]
[354059457,1740215449866,-3000.0,0.0001619,2]
[354059459,1740215449875,-3000.0,0.000162,2]
[354059461,1740215449884,-209.84879355,0.000162,2]
[354059463,1740215449894,-209.84879352,0.000162,2]
[354059465,1740215449903,-209.84879352,0.000162,2]
[354059467,1740215449913,-3000.0,0.0001621,2]
[354059469,1740215449922,-501.322563,0.0001622,2]
[354059471,1740215449931,-333.642135,0.0001622,2]
[354059473,1740215449940,-333.642135,0.0001622,2]
[354059475,1740215449950,-3000.0,0.0001622,2]
[354059477,1740215449959,-151.223871,0.0001623,2]
[354059479,1740215449968,-449.064463,0.0001623,2]
[354059481,1740215449977,-449.064463,0.0001623,2]
[354059483,1740215449986,-3000.0,0.0001623,2]
[354059485,1740215449996,-151.391908,0.0001623,2]
[354059487,1740215450005,-3000.0,0.0001624,2]
[354059489,1740215450015,-710.43500729,0.00016243,2]
[354059491,1740215450024,-597.823727,0.0001625,2]
[354059493,1740215450034,-597.823727,0.0001625,2]
[354059495,1740215450043,-1101.75304,0.0001625,2]
[354059497,1740215450052,-1101.75304,0.0001625,2]
[354059499,1740215450061,-3000.0,0.0001625,2]
[354059502,1740215450071,-151.0,0.0001625,2]
[354059504,1740215450080,-749.50867,0.0001625,2]
[354059506,1740215450089,-749.50867,0.0001625,2]
[354059508,1740215450098,-2396.891565,0.0001625,2]
[354059510,1740215450108,-2396.891565,0.0001625,2]
[354059511,1740215450118,-261.231956,0.0001625,2]
[354059513,1740215450127,-261.231956,0.0001625,2]
[354059515,1740215450136,-343.130162,0.0001625,2]
[354059517,1740215450146,-343.130162,0.0001625,2]
[354059519,1740215450155,-251.16502,0.0001625,2]
[354059521,1740215450164,-251.16502,0.0001625,2]
[354059523,1740215450174,-151.0,0.0001625,2]
[354059525,1740215450183,-151.0,0.0001625,2]
[354059527,1740215450192,-355.032491,0.0001626,2]
[354059529,1740215450201,-355.032491,0.0001626,2]
[354059531,1740215450210,-270.0,0.0001626,2]
[354059533,1740215450219,-270.0,0.0001626,2]
[354059534,1740215450227,-3000.0,0.0001626,2]
[354059536,1740215450238,-361.965309,0.0001626,2]
[354059538,1740215450249,-361.965309,0.0001626,2]
[354059540,1740215450258,-577.24423,0.0001626,2]
[354059542,1740215450267,-577.24423,0.0001626,2]
[354059544,1740215450277,-522.990991,0.0001626,2]
[354059545,1740215450286,-522.990991,0.0001626,2]
[354059547,1740215450295,-151.0,0.0001626,2]
[354059549,1740215450305,-356.941771,0.0001626,2]
[354059551,1740215450315,-356.941771,0.0001626,2]
[354059553,1740215450324,-1625.411995,0.0001626,2]
[354059554,1740215450333,-1625.411995,0.0001626,2]
[354059556,1740215450343,-442.581863,0.0001626,2]
[354059558,1740215450352,-442.581863,0.0001626,2]
[354059560,1740215450362,-151.0,0.0001626,2]
[354059562,1740215450371,-151.0,0.0001626,2]
[354059564,1740215450382,-1896.083334,0.0001626,2]
[354059566,1740215450392,-1896.083334,0.0001626,2]
[354059567,1740215450401,-151.0,0.0001627,2]
[354059569,1740215450410,-162.03035,0.0001627,2]
[354059571,1740215450420,-3000.0,0.0001627,2]
[354059573,1740215450429,-151.0,0.0001628,2]
[354059575,1740215450438,-3000.0,0.0001628,2]
[354059576,1740215450447,-151.0,0.0001628,2]
[354059578,1740215450457,-3000.0,0.0001629,2]
[354059580,1740215450466,-3000.0,0.000163,2]
[354059582,1740215450476,-151.0,0.0001631,2]
[354059584,1740215450485,-3000.0,0.0001631,2]
[354059586,1740215450495,-3000.0,0.0001632,2]
[354059588,1740215450504,-151.0,0.00016328,2]
[354059590,1740215450514,-517.928836,0.00016328,2]
[354059591,1740215450523,-517.928836,0.00016328,2]
[354059593,1740215450532,-3000.0,0.0001633,2]
[354059595,1740215450541,-3000.0,0.0001634,2]
[354059597,1740215450552,-710.43500729,0.00016343,2]
[354059599,1740215450561,-3000.0,0.0001635,2]
[354059601,1740215450571,-3000.0,0.0001636,2]
[354059602,1740215450580,-3000.0,0.0001637,2]
[354059604,1740215450589,-3000.0,0.0001638,2]
[354059606,1740215450599,-3000.0,0.0001639,2]
[354059608,1740215450609,-3000.0,0.000164,2]
[354059610,1740215450618,-3000.0,0.0001641,2]
[354059612,1740215450627,-3000.0,0.0001642,2]
[354059613,1740215450636,-3000.0,0.0001643,2]
[354059615,1740215450646,-500.0,0.00016438,2]
[354059617,1740215450655,-500.0,0.00016438,3]
[354059619,1740215450665,-500.0,0.00016438,3]
[354059621,1740215450674,-500.0,0.00016438,3]
[354059623,1740215450683,-315.11686728,0.00016438,3]
[354059624,1740215450692,-500.0,0.00016438,2]
[354059626,1740215450701,-500.0,0.00016438,2]
[354059628,1740215450711,-400.58567501,0.00016438,7]
[354059630,1740215450720,-233.83889,0.00016438,2]
[354059632,1740215450729,-233.83889,0.00016438,2]
[354059633,1740215450739,-233.83889,0.00016438,2]
[354059635,1740215450748,-233.83889,0.00016438,2]
[354059637,1740215450757,-233.83889,0.00016438,2]
[354059639,1740215450767,-233.83889,0.00016438,2]
[354059641,1740215450776,-233.83889,0.00016438,2]
[354059642,1740215450785,-233.83889,0.00016438,2]
[354059644,1740215450795,-3000.0,0.0001644,2]
[354059646,1740215450805,-710.43500729,0.00016443,2]
[354059648,1740215450814,-449.064463,0.0001645,2]
[354059650,1740215450824,-449.064463,0.0001645,2]
[354059652,1740215450833,-597.823727,0.0001645,2]
[354059654,1740215450843,-597.823727,0.0001645,2]
[354059656,1740215450853,-3000.0,0.0001645,2]
[354059666,1740215450950,-462.0,0.00016454,2]
[354059668,1740215450961,-462.0,0.00016454,2]
[354059670,1740215450972,-462.0,0.00016454,2]
[354059672,1740215450982,-462.0,0.00016454,2]
[354059674,1740215450992,-462.0,0.00016454,2]
[354059675,1740215451004,-462.0,0.00016454,2]
[354059677,1740215451015,-462.0,0.00016454,2]
[354059679,1740215451025,-462.0,0.00016454,2]
[354059681,1740215451036,-462.0,0.00016454,2]
[354059683,1740215451046,-462.0,0.00016454,2]
[354059685,1740215451058,-462.0,0.00016454,2]
[354059687,1740215451069,-462.0,0.00016454,2]
[354059689,1740215451080,-462.0,0.00016454,2]
[354059691,1740215451092,-462.0,0.00016454,2]
[354059693,1740215451104,-656.0,0.00016455,2]
[354059695,1740215451119,-656.0,0.00016455,2]
[354059697,1740215451130,-656.0,0.00016455,2]
[354059699,1740215451142,-656.0,0.00016455,2]
[354059701,1740215451152,-656.0,0.00016455,2]
[354059702,1740215451165,-656.0,0.00016455,2]
[354059704,1740215451175,-656.0,0.00016455,2]
[354059706,1740215451186,-656.0,0.00016455,2]